Cogmind - Beta 14 @@@ ROGUE MODE // 2024.12.01 @ 18:13:54 Player: lavinia Result: Destroyed by D-53 Grenadier with Mini Grenade Launcher Performance ------------- Evolutions (0) 0 Regions Visited (2) 400 Robots Destroyed (33) 165 Value Destroyed (631) 631 Prototype IDs (5) 100 Alien Tech Used (0) 0 Bonus (67) 67 TOTAL SCORE: 1363 Bonus ------- Follower Combat Kills 67 Cogmind --------- Core Integrity 0/250 Matter 235/300 Energy 160/160 System Corruption 1% Temperature Cool (6) Movement Rolling (115) Ox1 Location -10/Mines Parts ------- > --- POWER (1) -------- Light Nuclear Core > --- PROPULSION (2) --- Compact Wheel > --- UTILITY (2) ------ Large Storage Unit Targeting Computer > --- WEAPON (2) ------- (None) > --- INVENTORY (15) --- Light Ion Engine Structural Scanner Improved Trap Extractor (0/6) EM Pulse Gun Light Assault Rifle Light Assault Rifle Grenade Launcher Grenade Launcher Improved Grenade Launcher Datajack Datajack Axe Peak State ------------ > --- POWER ------------ Light Nuclear Core > --- PROPULSION ------- Compact Wheel Compact Wheel > --- UTILITY ---------- Large Storage Unit Targeting Computer > --- WEAPON ----------- Datajack Axe > --- INVENTORY -------- Light Ion Engine Improved Trap Extractor EM Pulse Gun Light Assault Rifle Light Assault Rifle Grenade Launcher Grenade Launcher Grenade Launcher Grenade Launcher Improved Grenade Launcher Datajack [Rating: 12] Favorites ----------- Power Light Ion Engine Engine Light Ion Engine Power Core Light Nuclear Core Propulsion Compact Wheel Wheel Compact Wheel Utility Improved Terrain Scanner Device Improved Terrain Scanner Storage Large Storage Unit Processor Targeting Computer Protection Utility Shielding Weapon Light Assault Rifle Energy Gun EM Pulse Gun Ballistic Gun Light Assault Rifle Launcher Grenade Launcher Impact Weapon Hammer Slashing Weapon Axe Special Melee Weapon Datajack Build | -11 -10 -10 ------- Run | Yrd Mat Min Slots Evolved . | . . . Power . | . . . Propulsion . | . . . Utility . | . . . Weapon . | . . . Parts Attached 35 | 8 18 9 Power 3 | 1 . 2 Engine 2 | 1 . 1 Core 1 | . . 1 Reactor . | . . . Propulsion 8 | 2 3 3 Treads . | . . . Leg . | . . . Wheel 8 | 2 3 3 Hover . | . . . Flight . | . . . Utility 5 | 2 3 . Device 1 | 1 . . Storage 2 | 1 1 . Processor 1 | . 1 . Hackware . | . . . Protection 1 | . 1 . Artifact . | . . . Weapon 19 | 3 12 4 Energy Gun 1 | 1 . . Energy Cannon . | . . . Ballistic Gun 3 | 2 1 . Ballistic Cannon . | . . . Launcher 6 | . 4 2 Special Weapon . | . . . Impact Weapon 2 | . 2 . Slashing Weapon 1 | . . 1 Piercing Weapon . | . . . Special Melee Weapon 6 | . 5 1 Unidentified Prototypes . | . . . Parts Lost 8 | . 5 3 Power 1 | . 1 . Propulsion 2 | . 1 1 Utility 1 | . 1 . Weapon 4 | . 2 2 Highest Loss Streak 3 | . 3 3 To Critical Strikes . | . . . Average Slot Usage (%) 91 | . 88 97 Engine 7 | . 9 4 Core 2 | . . 9 Wheel 24 | . 23 26 Device 5 | . 7 . Storage 14 | . 14 14 Processor 8 | . 6 14 Ballistic Gun 6 | . 8 . Launcher 5 | . 7 . Impact Weapon 4 | . 3 5 Slashing Weapon 2 | . . 8 Special Melee Weapon 8 | . 6 13 Peak Build Rating 12 | 9 9 12 Average Rating 8 | 8 7 10 On Entrance 4 | . 9 5 Naked Turns . | . . . Heaviest Build 29 | 11 29 29 Greatest Support 32 | 20 32 32 Greatest Overweight (x) 8 | . 7 8 Average Overweight (x) . | . . . Largest Inventory Capacity 15 | 8 15 15 Average Capacity 11 | 7 13 15 Most Carried 12 | 2 10 12 Average Carried 5 | 1 6 10 Final Capacity 15 | 8 15 15 Final Carried 12 | 2 9 12 Class Distribution -------------------- 100% | Mutant Dominant Class ---------------- Mutant | -10/Materials Mutant | -10/Mines Resources | -11 -10 -10 ----------- Run | Yrd Mat Min Matter Collected 920 | 291 355 274 Remotely . | . . . Salvage Created 829 | 120 600 109 Parts 64 | 4 51 9 Haulers Intercepted 1 | . 1 . Recyclers Shooed 1 | . 1 . Parts Field Recycled . | . . . Retrieved Matter . | . . . Parts Self-Destructed . | . . . Prevented . | . . . Kills | -11 -10 -10 ------- Run | Yrd Mat Min Combat Hostiles Destroyed 19 | . 15 4 Melee 1 | . 1 . Guns 2 | . 2 . AOE 16 | . 12 4 Classes Destroyed 11 | 2 8 1 Worker 5 | . 2 3 Builder 2 | . 1 1 Tunneler 2 | 1 . 1 Hauler 1 | . 1 . Recycler 3 | 1 2 . Operator 2 | . 2 . Watcher 3 | . 3 . Swarmer 4 | . 4 . Grunt 9 | . 9 . Subdweller 2 | . 2 . Assembled 4 | . . 4 Best Kill Streak 10 | 1 10 4 Combat Bots Only 8 | . 8 4 Max Kills in Single Turn 2 | 1 2 2 Gunslinging . | . . . Exploded 2 | . 2 2 Melee 1 | . 1 . Uniques/NPCs Destroyed . | . . . Combat | -11 -10 -10 -------- Run | Yrd Mat Min Hostile Shots Fired 44 | . 33 11 Missed 10 | . 7 3 Damage Taken 692 | . 416 276 Core 255 | . 135 120 Absorbed by Shields . | . . . Core Remaining (%) 100 | 100 . . Volleys Fired 59 | 16 39 4 Largest 2 | 2 2 2 Hottest 60 | 40 60 60 Shots Fired 112 | 32 74 6 Gun 74 | 32 42 . Cannon . | . . . Launcher 38 | . 32 6 Special . | . . . Kinetic 74 | 32 42 . Thermal . | . . . Explosive 38 | . 32 6 Electromagnetic . | . . . Robot Hit Streak 7 | 5 7 4 Robot Miss Streak 5 | 5 3 1 Penetration Max . | . . . Secondary Targets 1 | . 1 . Max Gunslinging Chain 1 | . 1 . Shots Hit Robots 86 | 16 59 11 Core Hits 61 | 6 41 14 Critical Kills 1 | . 1 . Critical Parts Destroyed 1 | . 1 . Critical Strikes 2 | . 2 . Destroy 1 | . 1 . Smash 1 | . 1 . Melee Attacks 28 | . 19 9 Impact 8 | . 6 2 Slashing 4 | . . 4 Piercing . | . . . Sneak Attacks 25 | . 16 9 Combat Hostiles . | . . . Follow-up Attacks . | . . . Damage Inflicted 2196 | 125 1388 683 Guns 315 | 125 190 . Cannons . | . . . Explosions 1303 | . 1016 287 Melee 578 | . 182 396 Ramming . | . . . Kinetic 315 | 125 190 . Thermal . | . . . Explosive 1303 | . 1016 287 Electromagnetic . | . . . Impact 283 | . 182 101 Slashing 295 | . . 295 Piercing . | . . . Highest Corruption 1 | . 1 1 Average Corruption 1 | . 1 1 Corruption Purged . | . . . Corruption Blocked . | . . . Effects 6 | . 4 2 Message Errors 1 | . . 1 Matter Fused 3 | . 3 . Heat Flow Errors 1 | . 1 . Energy Discharges 1 | . . 1 Overload Shots . | . . . Overflow Damage 181 | . 66 115 Projectiles . | . . . Explosions 5 | . 5 . Melee 176 | . 61 115 Knockbacks 1 | . 1 . Impact 1 | . 1 . Kinetic . | . . . Secondary . | . . . Self-Inflicted Damage 103 | . 101 2 Shots 4 | . 3 1 Rammed . | . . . Targets Rammed . | . . . Kicked . | . . . Crushed . | . . . Highest Temperature 135 | . 135 12 Average Temperature 19 | . 22 7 Received Heat Transfer 156 | . 156 . Siege Activations . | . . . Robots Corrupted 3 | . 2 1 Combat Hostiles . | . . . Parts Fried 3 | . 2 1 Impact Corruptions 4 | . 3 1 Robots Melted . | . . . Combat Hostiles . | . . . Parts Melted . | . . . Heat Transferred . | . . . Parts Sabotaged . | . . . Parts Stolen . | . . . Parts Stripped . | . . . Power Chain Reactions . | . . . Alert | -11 -10 -10 ------- Run | Yrd Mat Min Peak Influence 407 | 10 407 214 Initial 97 | . . 97 Average 94 | 3 172 103 Maximum Alert Level 2 | . 2 1 Low Security (%) 82 | 100 61 94 Level 1 17 | . 37 5 Level 2 . | . . . Level 3 . | . . . Level 4 . | . . . Level 5 . | . . . High Security . | . . . Max Security . | . . . Squads Dispatched 3 | . 3 . Investigation 2 | . 2 . Extermination . | . . . Reinforcement 1 | . 1 . Assault . | . . . Garrison . | . . . Intercept . | . . . Searches Triggered . | . . . Construction Impeded . | . . . Haulers Reinforced . | . . . Active Scanning Responses . | . . . Cargo Convoy Interrupts . | . . . Stealth | -11 -10 -10 --------- Run | Yrd Mat Min Distress Signals 2 | . 2 . Communications Jammed . | . . . Distress Signals . | . . . Times Spotted 31 | . 19 12 Peak Tracking Total 10 | . 5 10 Tactical Retreats . | . . . Traps | -11 -10 -10 ------- Run | Yrd Mat Min Traps Triggered 3 | . 2 1 Indirectly . | . . . Trap Hack Attempts 79 | . 56 23 Triggered . | . . . Disarmed 1 | . 1 . Reprogrammed 4 | . 3 1 Reused . | . . . Traps Extracted . | . . . Installed . | . . . Triggered . | . . . Machines | -11 -10 -10 ---------- Run | Yrd Mat Min Machines Disabled 5 | . 5 . Max in Single Turn 1 | . 1 . Machines Repaired . | . . . Machines Dismantled . | . . . Machines Sabotaged . | . . . Overloaded Fab Kills . | . . . Hacking | -11 -10 -10 --------- Run | Yrd Mat Min Machines Accessed 7 | . 6 1 Terminals 5 | . 5 . Fabricators . | . . . Repair Stations 1 | . 1 . Recycling Units . | . . . Scanalyzers . | . . . Garrison Access . | . . . Total Hacks 23 | . 22 1 Successful 10 | . 9 1 Failed 13 | . 13 . Catastrophic . | . . . Database Lockouts . | . . . Manual 7 | . 7 . Terminals 19 | . 19 . Fabricators . | . . . Repair Stations 3 | . 3 . Recycling Units . | . . . Scanalyzers . | . . . Garrison Access . | . . . Terminal Hacks 10 | . 9 1 Prototype ID Bank 3 | . 3 . Open Door 1 | . . 1 Branch Access Points 2 | . 2 . Terminal Index 1 | . 1 . Locate Traps 2 | . 2 . Zone Layout 1 | . 1 . Fabricator Hacks . | . . . Repair Station Hacks . | . . . Recycling Unit Hacks . | . . . Scanalyzer . | . . . Garrison Access Hacks . | . . . Unauthorized Hacks . | . . . Terminals . | . . . Fabricators . | . . . Repair Stations . | . . . Recycling Units . | . . . Scanalyzers . | . . . Garrison Access . | . . . Data Cores Recovered . | . . . Used . | . . . Hacking Detections 6 | . 6 . Full Trace Events 2 | . 2 . Feedback Events 1 | . 1 . Corruption 1 | . 1 . Feedback Blocked . | . . . Robot Schematics Acquired . | . . . Robots Built . | . . . Authchips . | . . . Time . | . . . Total Robot Build Rating . | . . . Part Schematics Acquired . | . . . Parts Built . | . . . Authchips . | . . . Time . | . . . Total Part Build Rating . | . . . Parts Repaired . | . . . Time . | . . . Parts Recycled . | . . . Recycled Matter . | . . . Retrieved Matter . | . . . Retrieved Components . | . . . Parts Scanalyzed . | . . . Part Schematics Acquired . | . . . Parts Damaged . | . . . Bothacking | -11 -10 -10 ------------ Run | Yrd Mat Min Used RIF Installer . | . . . Robots Hacked 5 | . 4 1 Non-combat 5 | . 4 1 Combat . | . . . Robot Hacks Applied 12 | . 10 2 parse_system 4 | . 3 1 no_distress 4 | . 3 1 find_recycling 2 | . 2 . find_station 2 | . 2 . Relay Couplers Released . | . . . Fabnet Peak Effective % . | . . . Robots Rewired . | . . . Allies Hacked . | . . . Hacks Repelled . | . . . Allies | -11 -10 -10 -------- Run | Yrd Mat Min Total Allies 3 | . . 3 Largest Group 3 | . . 3 Highest-Rated Group 40 | . . 40 Highest-Rated Ally 16 | . . 16 Total Orders . | . . . Ally Attacks 11 | . . 11 Total Damage 82 | . . 82 Kills 4 | . . 4 Allies Corrupted . | . . . Allies Melted . | . . . Intel | -11 -10 -10 ------- Run | Yrd Mat Min Robot Analysis Total . | . . . Derelict Logs Recovered . | . . . Drone Launches . | . . . Drone Recoveries . | . . . Exploration | -11 -10 -10 ------------- Run | Yrd Mat Min Turns Passed 2774 | 1074 1202 498 Spaces Moved 1214 | 153 663 398 Core 5 | 1 3 1 Treads . | . . . Legs . | . . . Wheels 1209 | 152 660 397 Hover . | . . . Flight . | . . . Fastest Speed 50 | 50 80 100 Average Speed 99 | 79 103 101 Slowest Speed 450 | 80 400 450 Overloaded Moves . | . . . Propulsion Burnouts . | . . . Robots Hopped . | . . . Cave-ins Triggered . | . . . Exploration Rate (%) 61 | 15 95 75 Regions Visited 2 Branch Regions 1 Pre-discovered Areas 1 | . . 1 Known Exits Taken 1 | . 1 . Unknown Exits Taken 1 | 1 . . Scrap Searched 1 | . . 1 Spaces Dug . | . . . Terrain Destroyed 185 | . 142 43 Melee . | . . . Projectile . | . . . AOE 185 | . 142 43 Terrain Rammed . | . . . Walls Destroyed . | . . . Machines Disabled . | . . . Actions | -11 -10 -10 --------- Run | Yrd Mat Min Total 2638 | 1075 1090 473 Wait 1205 | 897 282 26 Move 1212 | 152 662 398 Hop . | . . . Pick Up 16 | 2 11 3 Fast Attach 16 | 7 4 5 Attach 4 | . 3 1 Detach . | . . . Swap 15 | 1 11 3 Drop 4 | . 3 1 Fire 59 | 16 39 4 Melee 28 | . 19 9 Ram . | . . . Kick . | . . . Crush . | . . . Escape Stasis . | . . . Rewire . | . . . Trap 79 | . 56 23 Miscellaneous . | . . . Route ------- -11/Scrapyard -10/Materials (discovered 4 exits: [*Mat x3] / *Min) -10/Mines (discovered 1 exit: [*Mat]) History --------- Turn | Location | Event 15 | -11/Scrapyard | Discovered new exit (range 16) 1075 | -11/Scrapyard | Entered Materials 1076 | -10/Materials | Build established: Mutant 1134 | -10/Materials | Identified exit to Mines 1341 | -10/Materials | Discovered new exit (range 15) 1480 | -10/Materials | Discovered new exit (range 16) 1575 | -10/Materials | Derelicts attacked the area 1883 | -10/Materials | Core integrity fell below 50% 1904 | -10/Materials | Destroyed 8 combat bots 1909 | -10/Materials | Lost 3 parts (1p1n1w) 1921 | -10/Materials | Discovered new exit (range 12) 2277 | -10/Materials | Entered Mines 2334 | -10/Mines | Assisted by bots powering up and referring to "LRC-V3" 2406 | -10/Mines | Met a Derelict who couldn't figure out how to use a Trap Extractor 2711 | -10/Mines | Discovered new exit (range 10) 2719 | -10/Mines | Learned location of Storage (-8) 2753 | -10/Mines | Assembled infested the area 2774 | -10/Mines | Core integrity fell below 20% 2775 | -10/Mines | Destroyed by D-53 Grenadier with Mini Grenade Launcher Last Messages --------------- 4I-4WU(g) slips back into the shadows. ALERT: Infestation in the mines, dispatching Demolisher response squad. as-00405 suffers critical hit (Burn). as-14586 destroyed. as-00405 destroyed. as-38991 destroyed. as-25653 destroyed. as-92420 destroyed. U-05 Engineer builds a Wall. Mercenary 1a suffers critical hit (Destroy). Mercenary 1a destroyed. C-30 ARC bursts open, deploying its payload. D-53 Grenadier unfolds itself. Trooper 1b destroyed. Grenade Launcher destroyed. Com. Wheel destroyed. Grenade Launcher destroyed. Destroyed Grenade Launcher. U-05 Engineer lays Concrete. Map ----- +----------------------------------------------------+ | ??????????????????????????????????????????? | | ??????????????????????????????????????????? | | ??????????????????????????????????????????? | | ??????????????????? ??????????????????????? | | ??????????????????? ??????????????????????? | | ??????????????????? ##????????????????????? | | #####?????????????? ????????????????????? | | # ##????????????? ??###???????????????? | | ##????????????# ?? ???????????????? | | ###??????????# ?# ???????????????? | | # #######????# ##aa#???????????????? | | # ## ##???# ## ###?????????????? | | # #???# # ##????????????? | | # #???# u# #????????????? | | ##???# #????????????? | | #????# #????????????? | | ## ##????# #????????????? | | ##### ###???### #????????????? | | #???## ##????## #????????????? | | ###???####?????# #????????????? | | ## #???????????# #????????????? | | # #??????????## ##???????????? | | # ###????????#### =%= ##??????????? | | # ##????????# #??????????? | | ?# #?????#### #??????????? | | ?# #????## # @ #???????????? | | ### ###### #??????????? | | #### < d #??????????? | | #?## ####### % #??????????? | | ##?######?????## d ## ?????????? | | ###???????????# ### #?? ???????? | | ##??????????# t##?######??? ?????? | | #??????????## ##????????????? #????? | | #???????????## #??????????????? #????? | | # #????????????# #####?????????????????? | | # #????????????# #?????????????????? | | ## ##?????#####??##### #?????????????????? | | ?####?????## ##?????# #?????????????????? | | ?????????## ##????# #?????????????????? | | ?????????# #????# #?????????????????? | | ?????????# ##???# #?????????????????? | | ?????????# ##??# #?????????????????? | | ?????????# #??# #?????????????????? | | ??????????# #??# #?????????????????? | | ??????????# #??# #?###?????????????? | | ??????????# #???#=## ##????????????? | | ?????????## #####%# #????????????? | | ###????### [%[ #????????????? | | ######! *%= #????????????? | | ######## #???????????? | +----------------------------------------------------+ Best States ------------- Heat Dissipation 25 Energy Generation 14 Energy Capacity 160 Matter Stores 300 Matter Capacity 300 Sight Range 16 Terrain Scan Range 16 Terrain Scan Density 10 Evasion (%) 44 Targeting Accuracy 5 Item Schematics ----------------- None Robot Schematics ------------------ None Fabricated ------------ Nothing Alien Tech Used ----------------- None Achievements -------------- Hehehe Challenges ------------ None Game ------ Seed WeaponsInsulatedChainsword Manual? 0 Play Time 00:25:58 Cumulative 7.8 hours Start 2024.12.01 @ 17:48:07 End 2024.12.01 @ 18:13:54 Sessions 1 Manual Loads 0 Difficulty Rogue Special Mode None Game No. 13 Rogue 13 Adventurer 0 Explorer 0 Win Type - Total 0 Types 0/0/0/0/0/0/0/0/0 Lore% 7 Gallery% 8 Achievement% 11 Wizard Run 0 Options --------- Layout 1 ASCII 0 Keyboard 0 Movement Numpad Keybinds 0 Fullscreen 2 Font 24/Smallcaps Map View 50x35 Zoom Use 0% Tactical HUD 0 Map Filters NONE Filters NONE Steam 1 RUN: ff04ff82-a642-436d-a27f-fea4a9c4699d